{"text_format":"3","workbook":"xlsx","n_sheets":2,"sheets":["Maisto prekių sąrašas","skaičiavimai"],"not_rendered":{"defined_names":4},"read":"whole","date_system":"1900"}

{"sheet":"Maisto prekių sąrašas","index":0,"n_rows":21,"n_cols":13,"rows_kept":21,"merged":[[0,1,0,11],[0,12,1,12],[1,1,1,11],[4,12,5,12],[7,12,8,12],[10,12,11,12],[13,12,14,12]]}
[{"$nulls":12},{"$f":"skaičiavimai!M9","v":"PIENO PRODUKTAI IŠ VISO"}]
[null," Maisto prekių sąrašas"]
[null,null,"Atlikta","ELEMENTAS","ĮSIGIJIMO VIETA","KATEGORIJA","KIEKIS","VIENETAS","VIENETO KAINA","IŠ VISO","KOMENTARAS",null,{"$f":"skaičiavimai!L9","v":37}]
[null,null,1,"Apelsinai","Maisto prekės","Produktai",2,"kg",{"v":2.99,"d":"2.99 EUR"},{"$f":"IFERROR(Sąrašas[KIEKIS]*Sąrašas[VIENETO KAINA],\"\")","v":{"v":5.98,"d":"5.98 EUR"}},null,null,{"$f":"skaičiavimai!M8","v":"PRODUKTAI IŠ VISO"}]
[{"$nulls":3},"Obuoliai","Ūkininkų turgus","Produktai",3,"kg",{"v":1.99,"d":"1.99 EUR"},{"$f":"IFERROR(Sąrašas[KIEKIS]*Sąrašas[VIENETO KAINA],\"\")","v":{"v":5.97,"d":"5.97 EUR"}},"Turiu kuponą",null,{"$f":"skaičiavimai!L8","v":45}]
[{"$nulls":3},"Bananai","Maisto prekės","Produktai",1,"ryšelis",{"v":3.99,"d":"3.99 EUR"},{"$f":"IFERROR(Sąrašas[KIEKIS]*Sąrašas[VIENETO KAINA],\"\")","v":{"v":3.99,"d":"3.99 EUR"}}]
[{"$nulls":3},"Salotos","Turgus","Produktai",2,"gūžė",{"v":2.29,"d":"2.29 EUR"},{"$f":"IFERROR(Sąrašas[KIEKIS]*Sąrašas[VIENETO KAINA],\"\")","v":{"v":4.58,"d":"4.58 EUR"}},null,null,{"$f":"skaičiavimai!M7","v":"MĖSA IŠ VISO"}]
[{"$nulls":3},"Pomidorai","Turgus","Produktai",4,"kg",{"v":3.49,"d":"3.49 EUR"},{"$f":"IFERROR(Sąrašas[KIEKIS]*Sąrašas[VIENETO KAINA],\"\")","v":{"v":13.96,"d":"13.96 EUR"}},null,null,{"$f":"skaičiavimai!L7","v":80}]
[{"$nulls":3},"Moliūgas","Turgus","Produktai",2,"kiekvienas",{"v":1.5,"d":"1.50 EUR"},{"$f":"IFERROR(Sąrašas[KIEKIS]*Sąrašas[VIENETO KAINA],\"\")","v":{"v":3,"d":"3.00 EUR"}}]
[{"$nulls":3},"Salierai","Maisto prekės","Produktai",2,"ryšelis",{"v":1.99,"d":"1.99 EUR"},{"$f":"IFERROR(Sąrašas[KIEKIS]*Sąrašas[VIENETO KAINA],\"\")","v":{"v":3.98,"d":"3.98 EUR"}},null,null,{"$f":"skaičiavimai!M6","v":"JŪROS GĖRYBĖS IŠ VISO"}]
[{"$nulls":3},"Agurkai","Turgus","Produktai",1,"kg",{"v":2.29,"d":"2.29 EUR"},{"$f":"IFERROR(Sąrašas[KIEKIS]*Sąrašas[VIENETO KAINA],\"\")","v":{"v":2.29,"d":"2.29 EUR"}},null,null,{"$f":"skaičiavimai!L6","v":109}]
[{"$nulls":3},"Grybai","Maisto prekės","Produktai",0.5,"kg",{"v":2.25,"d":"2.25 EUR"},{"$f":"IFERROR(Sąrašas[KIEKIS]*Sąrašas[VIENETO KAINA],\"\")","v":{"v":1.125,"d":"1.13 EUR"}},"Dideli baravykai"]
[{"$nulls":3},"Pienas ","Pristatymas į namus","Pieno produktai",2,"l",{"v":3.99,"d":"3.99 EUR"},{"$f":"IFERROR(Sąrašas[KIEKIS]*Sąrašas[VIENETO KAINA],\"\")","v":{"v":7.98,"d":"7.98 EUR"}},null,null,{"$f":"skaičiavimai!M3","v":"KITŲ PIRKINIŲ SUMA"}]
[{"$nulls":3},"Sūris","Pristatymas į namus","Pieno produktai",1,"kg",{"v":9.99,"d":"9.99 EUR"},{"$f":"IFERROR(Sąrašas[KIEKIS]*Sąrašas[VIENETO KAINA],\"\")","v":{"v":9.99,"d":"9.99 EUR"}},"Kietieji sūriai",null,{"$f":"skaičiavimai!L3","v":0}]
[{"$nulls":3},"Kiaušiniai","Pristatymas į namus","Pieno produktai",2,"tuz.",{"v":3.5,"d":"3.50 EUR"},{"$f":"IFERROR(Sąrašas[KIEKIS]*Sąrašas[VIENETO KAINA],\"\")","v":{"v":7,"d":"7.00 EUR"}}]
[{"$nulls":3},"Varškės sūris","Pristatymas į namus","Pieno produktai",1,"0,5 kg",{"v":3.89,"d":"3.89 EUR"},{"$f":"IFERROR(Sąrašas[KIEKIS]*Sąrašas[VIENETO KAINA],\"\")","v":{"v":3.89,"d":"3.89 EUR"}},null,null,{"$f":"skaičiavimai!M4","v":"MAISTO PREKIŲ SUMA"}]
[{"$nulls":3},"Grietinė","Pristatymas į namus","Pieno produktai",1,"0,25 kg",{"v":2.99,"d":"2.99 EUR"},{"$f":"IFERROR(Sąrašas[KIEKIS]*Sąrašas[VIENETO KAINA],\"\")","v":{"v":2.99,"d":"2.99 EUR"}},null,null,{"$f":"MaistoPrekiųSuma","v":271}]
[{"$nulls":3},"Jogurtas","Maisto prekės","Pieno produktai",1,"0,5 kg",{"v":4.99,"d":"4.99 EUR"},{"$f":"IFERROR(Sąrašas[KIEKIS]*Sąrašas[VIENETO KAINA],\"\")","v":{"v":4.99,"d":"4.99 EUR"}},"Graikiškas su medumi"]
[{"$nulls":3},"Jautiena","Turgus","Mėsa",10,"kg",{"v":7.99,"d":"7.99 EUR"},{"$f":"IFERROR(Sąrašas[KIEKIS]*Sąrašas[VIENETO KAINA],\"\")","v":{"v":79.9,"d":"79.90 EUR"}},"Šonine apvyniota filė"]
[{"$nulls":3},"Laukinė lašiša","Žuvų turgus","Jūros gėrybės",6,"kg",{"v":8.99,"d":"8.99 EUR"},{"$f":"IFERROR(Sąrašas[KIEKIS]*Sąrašas[VIENETO KAINA],\"\")","v":{"v":53.94,"d":"53.94 EUR"}}]
[{"$nulls":3},"Aliaskos karališkieji krabai","Žuvų turgus","Jūros gėrybės",5,"kg",{"v":10.99,"d":"10.99 EUR"},{"$f":"IFERROR(Sąrašas[KIEKIS]*Sąrašas[VIENETO KAINA],\"\")","v":{"v":54.95,"d":"54.95 EUR"}}]

{"sheet":"skaičiavimai","index":1,"n_rows":21,"n_cols":13,"rows_kept":21,"hidden":true}
["*** Darbalapis turi likti paslėptas ***"]
[]
[{"$nulls":10},{"$f":"SUM(Sąrašas[IŠ VISO])-SUM(K6:K9)","v":{"v":0,"d":"0.00 EUR"}},{"$f":"ROUND(K3,0)","v":{"v":0,"d":"0 EUR"}},"KITŲ PIRKINIŲ SUMA"]
[{"$nulls":11},{"$f":"ROUNDUP(SUM(Sąrašas[IŠ VISO]),0)","v":{"v":271,"d":"271 EUR"}},"MAISTO PREKIŲ SUMA"]
[]
[{"$nulls":4},{"$f":"IFERROR(INDEX(Sąrašas[KATEGORIJA],MATCH(,COUNTIF($E$5:E5,Sąrašas[KATEGORIJA]),)),\"\")","v":"Produktai"},{"$f":"SUMIFS(Sąrašas[IŠ VISO],Sąrašas[KATEGORIJA],E6)","v":44.875},{"$f":"F6+ROW()/1000000","v":44.875006},{"$f":"LARGE($G$6:$G$21,1)","v":108.890009},{"$f":"MATCH(H6,$G$6:$G$21,0)","v":4},{"$f":"INDEX($E$6:$E$21,$I6)","v":"Jūros gėrybės"},{"$f":"INDEX($F$6:$F$21,$I6)","v":{"v":108.89,"d":"108.89 EUR"}},{"$f":"ROUND(K6,0)","v":{"v":109,"d":"109 EUR"}},{"$f":"UPPER(J6) & \" IŠ VISO\"","v":"JŪROS GĖRYBĖS IŠ VISO"}]
[{"$nulls":4},{"$f":"IFERROR(INDEX(Sąrašas[KATEGORIJA],MATCH(,COUNTIF($E$5:E6,Sąrašas[KATEGORIJA]),)),\"\")","v":"Pieno produktai"},{"$f":"SUMIFS(Sąrašas[IŠ VISO],Sąrašas[KATEGORIJA],E7)","v":36.84},{"$f":"F7+ROW()/1000000","v":36.840007},{"$f":"LARGE($G$6:$G$21,2)","v":79.900008},{"$f":"MATCH(H7,$G$6:$G$21,0)","v":3},{"$f":"INDEX($E$6:$E$21,$I7)","v":"Mėsa"},{"$f":"INDEX($F$6:$F$21,$I7)","v":{"v":79.9,"d":"79.90 EUR"}},{"$f":"ROUND(K7,0)","v":{"v":80,"d":"80 EUR"}},{"$f":"UPPER(J7) & \" IŠ VISO\"","v":"MĖSA IŠ VISO"}]
[{"$nulls":4},{"$f":"IFERROR(INDEX(Sąrašas[KATEGORIJA],MATCH(,COUNTIF($E$5:E7,Sąrašas[KATEGORIJA]),)),\"\")","v":"Mėsa"},{"$f":"SUMIFS(Sąrašas[IŠ VISO],Sąrašas[KATEGORIJA],E8)","v":79.9},79.900008,{"$f":"LARGE($G$6:$G$21,3)","v":44.875006},{"$f":"MATCH(H8,$G$6:$G$21,0)","v":1},{"$f":"INDEX($E$6:$E$21,$I8)","v":"Produktai"},{"$f":"INDEX($F$6:$F$21,$I8)","v":{"v":44.875,"d":"44.88 EUR"}},{"$f":"ROUND(K8,0)","v":{"v":45,"d":"45 EUR"}},{"$f":"UPPER(J8) & \" IŠ VISO\"","v":"PRODUKTAI IŠ VISO"}]
[{"$nulls":4},{"$f":"IFERROR(INDEX(Sąrašas[KATEGORIJA],MATCH(,COUNTIF($E$5:E8,Sąrašas[KATEGORIJA]),)),\"\")","v":"Jūros gėrybės"},{"$f":"SUMIFS(Sąrašas[IŠ VISO],Sąrašas[KATEGORIJA],E9)","v":108.89},108.890009,{"$f":"LARGE($G$6:$G$21,4)","v":36.840007},{"$f":"MATCH(H9,$G$6:$G$21,0)","v":2},{"$f":"INDEX($E$6:$E$21,$I9)","v":"Pieno produktai"},{"$f":"INDEX($F$6:$F$21,$I9)","v":{"v":36.84,"d":"36.84 EUR"}},{"$f":"ROUND(K9,0)","v":{"v":37,"d":"37 EUR"}},{"$f":"UPPER(J9) & \" IŠ VISO\"","v":"PIENO PRODUKTAI IŠ VISO"}]
[{"$nulls":4},{"$f":"IFERROR(INDEX(Sąrašas[KATEGORIJA],MATCH(,COUNTIF($E$5:E9,Sąrašas[KATEGORIJA]),)),\"\")","v":""},{"$f":"SUMIFS(Sąrašas[IŠ VISO],Sąrašas[KATEGORIJA],E10)","v":0},1e-05]
[{"$nulls":4},{"$f":"IFERROR(INDEX(Sąrašas[KATEGORIJA],MATCH(,COUNTIF($E$5:E10,Sąrašas[KATEGORIJA]),)),\"\")","v":""},{"$f":"SUMIFS(Sąrašas[IŠ VISO],Sąrašas[KATEGORIJA],E11)","v":0},1.1E-5]
[{"$nulls":4},{"$f":"IFERROR(INDEX(Sąrašas[KATEGORIJA],MATCH(,COUNTIF($E$5:E11,Sąrašas[KATEGORIJA]),)),\"\")","v":""},{"$f":"SUMIFS(Sąrašas[IŠ VISO],Sąrašas[KATEGORIJA],E12)","v":0},1.2E-5]
[{"$nulls":4},{"$f":"IFERROR(INDEX(Sąrašas[KATEGORIJA],MATCH(,COUNTIF($E$5:E12,Sąrašas[KATEGORIJA]),)),\"\")","v":""},{"$f":"SUMIFS(Sąrašas[IŠ VISO],Sąrašas[KATEGORIJA],E13)","v":0},1.3e-05]
[{"$nulls":4},{"$f":"IFERROR(INDEX(Sąrašas[KATEGORIJA],MATCH(,COUNTIF($E$5:E13,Sąrašas[KATEGORIJA]),)),\"\")","v":""},{"$f":"SUMIFS(Sąrašas[IŠ VISO],Sąrašas[KATEGORIJA],E14)","v":0},1.4E-5]
[{"$nulls":4},{"$f":"IFERROR(INDEX(Sąrašas[KATEGORIJA],MATCH(,COUNTIF($E$5:E14,Sąrašas[KATEGORIJA]),)),\"\")","v":""},{"$f":"SUMIFS(Sąrašas[IŠ VISO],Sąrašas[KATEGORIJA],E15)","v":0},1.5E-5]
[{"$nulls":4},{"$f":"IFERROR(INDEX(Sąrašas[KATEGORIJA],MATCH(,COUNTIF($E$5:E15,Sąrašas[KATEGORIJA]),)),\"\")","v":""},{"$f":"SUMIFS(Sąrašas[IŠ VISO],Sąrašas[KATEGORIJA],E16)","v":0},1.6e-05]
[{"$nulls":4},{"$f":"IFERROR(INDEX(Sąrašas[KATEGORIJA],MATCH(,COUNTIF($E$5:E16,Sąrašas[KATEGORIJA]),)),\"\")","v":""},{"$f":"SUMIFS(Sąrašas[IŠ VISO],Sąrašas[KATEGORIJA],E17)","v":0},1.7E-5]
[{"$nulls":4},{"$f":"IFERROR(INDEX(Sąrašas[KATEGORIJA],MATCH(,COUNTIF($E$5:E17,Sąrašas[KATEGORIJA]),)),\"\")","v":""},{"$f":"SUMIFS(Sąrašas[IŠ VISO],Sąrašas[KATEGORIJA],E18)","v":0},1.8E-5]
[{"$nulls":4},{"$f":"IFERROR(INDEX(Sąrašas[KATEGORIJA],MATCH(,COUNTIF($E$5:E18,Sąrašas[KATEGORIJA]),)),\"\")","v":""},{"$f":"SUMIFS(Sąrašas[IŠ VISO],Sąrašas[KATEGORIJA],E19)","v":0},1.9e-05]
[{"$nulls":4},{"$f":"IFERROR(INDEX(Sąrašas[KATEGORIJA],MATCH(,COUNTIF($E$5:E19,Sąrašas[KATEGORIJA]),)),\"\")","v":""},{"$f":"SUMIFS(Sąrašas[IŠ VISO],Sąrašas[KATEGORIJA],E20)","v":0},2e-05]
[{"$nulls":4},{"$f":"IFERROR(INDEX(Sąrašas[KATEGORIJA],MATCH(,COUNTIF($E$5:E20,Sąrašas[KATEGORIJA]),)),\"\")","v":""},{"$f":"SUMIFS(Sąrašas[IŠ VISO],Sąrašas[KATEGORIJA],E21)","v":0},2.1e-05]